Departmental family,Entity,Date Paid,Expense type,Expense Area,Supplier,Transaction Number,Amount, Description ,Supplier Type,Expenditure Type
UK Statistics Authority,Office for National Statistics,01-Jul-16,Other Provisions              ,Digital Services Technology and Methodology,PCSPS,30000070,"60,940.00",TUPE Pension Contributions ,Large,Programme
UK Statistics Authority,Office for National Statistics,06-Jul-16,Telecomms                     ,Digital Services Technology and Methodology,BT Global Services,80564850,"43,362.74",Information Management Services,Large,Programme
UK Statistics Authority,Office for National Statistics,06-Jul-16,Telecomms                     ,Data Collection,BT Global Services,80564851,"5,854.93",Information Management Services,Large,Programme
UK Statistics Authority,Office for National Statistics,06-Jul-16,Telecomms                     ,Digital Services Technology and Methodology,BT Global Services,80564851,"21,120.00",Information Management Services,Large,Programme
UK Statistics Authority,Office for National Statistics,06-Jul-16,IT Maintenance Hardware       ,Digital Services Technology and Methodology,Computacenter (UK) Limited,80564858,"201,903.43",Information Management Services,Large,Programme
UK Statistics Authority,Office for National Statistics,06-Jul-16,IT Purchases <2k,Business Services and Development,Computacenter (UK) Limited,80564858,475.95,Information Management Services,Large,Programme
UK Statistics Authority,Office for National Statistics,06-Jul-16,IT Purchases <2k,Business Services and Development,Computacenter (UK) Limited,80564858,199.02,Information Management Services,Large,Programme
UK Statistics Authority,Office for National Statistics,06-Jul-16,IT Purchases <2k,Business Services and Development,Computacenter (UK) Limited,80564858,648.66,Information Management Services,Large,Programme
UK Statistics Authority,Office for National Statistics,06-Jul-16,IT Purchases <2k,Census,Computacenter (UK) Limited,80564858,449.64,Information Management Services,Large,Programme
UK Statistics Authority,Office for National Statistics,06-Jul-16,IT Purchases <2k,Data Collection,Computacenter (UK) Limited,80564858,394.15,Information Management Services,Large,Programme
UK Statistics Authority,Office for National Statistics,06-Jul-16,IT Purchases <2k,Digital Services Technology and Methodology,Computacenter (UK) Limited,80564858,475.95,Information Management Services,Large,Programme
UK Statistics Authority,Office for National Statistics,06-Jul-16,IT Purchases <2k,Digital Services Technology and Methodology,Computacenter (UK) Limited,80564858,385.9,Information Management Services,Large,Programme
UK Statistics Authority,Office for National Statistics,06-Jul-16,IT Purchases <2k,Director General,Computacenter (UK) Limited,80564858,475.95,Information Management Services,Large,Programme
UK Statistics Authority,Office for National Statistics,06-Jul-16,IT Purchases <2k,National Accounts and Economic Statistics,Computacenter (UK) Limited,80564858,475.95,Information Management Services,Large,Programme
UK Statistics Authority,Office for National Statistics,06-Jul-16,IT Purchases <2k,Private Office,Computacenter (UK) Limited,80564858,475.95,Information Management Services,Large,Programme
UK Statistics Authority,Office for National Statistics,06-Jul-16,Software Pool 4yr,Business Services and Development,Computacenter (UK) Limited,80564858,"1,348.92",Information Management Services,Large,Programme
UK Statistics Authority,Office for National Statistics,06-Jul-16,Consultancy - Non IT,Census,Deloitte,80564859,"28,454.40",Information Management Services,SME,Programme
UK Statistics Authority,Office for National Statistics,06-Jul-16,Consultancy - Non IT,Census,Deloitte,80564859,"50,462.40",Information Management Services,SME,Programme
UK Statistics Authority,Office for National Statistics,06-Jul-16,Specialist Contractors IT,Digital Services Technology and Methodology,E Synergy Solutions,80564862,"75,702.00",Information Management Services,SME,Programme
UK Statistics Authority,Office for National Statistics,06-Jul-16,Rent Payable  - Titchfield,Business Services and Development,Eaton Aerospace Limited,80564863,"25,154.40",Titchfield Rent,Large,Programme
UK Statistics Authority,Office for National Statistics,06-Jul-16,IT Bureau Services            ,Digital Services Technology and Methodology,Fujitsu Services Ltd,80564867,"101,419.13",Information Management Services,Large,Programme
UK Statistics Authority,Office for National Statistics,06-Jul-16,IT Maintenance Hardware       ,Digital Services Technology and Methodology,Fujitsu Services Ltd,80564867,"2,987.05",Information Management Services,Large,Programme
UK Statistics Authority,Office for National Statistics,06-Jul-16,External Accommodation Costs  ,Data Collection,Heathrow Airport,80564871,"34,861.71",Heathrow Annual Rent and Facilities Charges,Large,Programme
UK Statistics Authority,Office for National Statistics,06-Jul-16,External Accommodation Costs  ,Data Collection,Heathrow Airport,80564871,"2,693.76",Heathrow Annual Rent and Facilities Charges,Large,Programme
UK Statistics Authority,Office for National Statistics,06-Jul-16,Misc Consumables & Equip <2k  ,Data Collection,Heathrow Airport,80564871,28.75,Heathrow Annual Rent and Facilities Charges,Large,Programme
UK Statistics Authority,Office for National Statistics,06-Jul-16,Specialist Contractors IT,Digital Services Technology and Methodology,Imaya Ltd,80564873,"46,706.40",Information Management Services,Large,Programme
UK Statistics Authority,Office for National Statistics,06-Jul-16,Contractual Service Payments - IT,Digital Services Technology and Methodology,Methods Digital Ltd,80564879,"15,300.00",Information Management Services,Large,Programme
UK Statistics Authority,Office for National Statistics,06-Jul-16,Specialist Contractors IT,Digital Services Technology and Methodology,Methods Digital Ltd,80564879,"96,750.00",Information Management Services,Large,Programme
UK Statistics Authority,Office for National Statistics,06-Jul-16,Specialist Contractors IT,Digital Services Technology and Methodology,Methods Digital Ltd,80564879,888.24,Information Management Services,Large,Programme
UK Statistics Authority,Office for National Statistics,06-Jul-16,Specialist Contractors IT,Digital Services Technology and Methodology,Methods Digital Ltd,80564879,"42,480.00",Information Management Services,Large,Programme
UK Statistics Authority,Office for National Statistics,06-Jul-16,Specialist Contractors IT,Digital Services Technology and Methodology,Methods Digital Ltd,80564879,"13,269.60",Information Management Services,Large,Programme
UK Statistics Authority,Office for National Statistics,06-Jul-16,Capital Major Works >25k      ,Business Services and Development,Mitie Facilities Services Ltd,80564881,"7,862.18",Newport Phase 1 Major Works,Large,Programme
UK Statistics Authority,Office for National Statistics,06-Jul-16,Capital Major Works >25k      ,Business Services and Development,Mitie Facilities Services Ltd,80564881,"6,418.73",Newport Phase 3 Major Works,Large,Programme
UK Statistics Authority,Office for National Statistics,06-Jul-16,Capital Major Works >25k      ,Business Services and Development,Mitie Facilities Services Ltd,80564881,"7,743.51",Titchfield Stage 4 Major Works,Large,Programme
UK Statistics Authority,Office for National Statistics,06-Jul-16,FM Contract Payments,Corporate Support,Mitie Facilities Services Ltd,80564881,"416,530.15",Facilites Management Fixed Fee,Large,Programme
UK Statistics Authority,Office for National Statistics,06-Jul-16,Major Works Over 25k         ,Business Services and Development,Mitie Facilities Services Ltd,80564881,"65,311.08",Accomodation Planning,Large,Programme
UK Statistics Authority,Office for National Statistics,06-Jul-16,Major Works Over 25k         ,Business Services and Development,Mitie Facilities Services Ltd,80564881,"6,214.92",Newport Phase 4 Major Works,Large,Programme
UK Statistics Authority,Office for National Statistics,06-Jul-16,Statistical Services/Surveys  ,Digital Services Technology and Methodology,Mysupermarket Limited,80564882,"18,000.00",Survey Development,SME,Programme
UK Statistics Authority,Office for National Statistics,06-Jul-16,Statistical Services/Surveys  ,National Accounts and Economic Statistics,Mysupermarket Limited,80564882,"18,000.00",Survey Development,SME,Programme
UK Statistics Authority,Office for National Statistics,06-Jul-16,Agency Staff,Data Collection,NISRA,80564884,"3,000.00",Provision of Staff for International Surveys ,Large,Programme
UK Statistics Authority,Office for National Statistics,06-Jul-16,Contractual Service Payments - Non IT,Data Collection,NISRA,80564884,"60,000.00",Provision of Staff for International Surveys ,Large,Programme
UK Statistics Authority,Office for National Statistics,06-Jul-16,Agency Staff,Census,Parity Resources Limited,80564887,851.47,Information Management Services,Large,Programme
UK Statistics Authority,Office for National Statistics,06-Jul-16,Agency Staff,Social and Analysis,Parity Resources Limited,80564887,"3,278.71",Information Management Services,Large,Programme
UK Statistics Authority,Office for National Statistics,06-Jul-16,Specialist Contractors IT,Digital Services Technology and Methodology,Parity Resources Limited,80564887,"88,826.59",Information Management Services,Large,Programme
UK Statistics Authority,Office for National Statistics,06-Jul-16,Specialist Contractors IT,Digital Services Technology and Methodology,Parity Resources Limited,80564887,162,Information Management Services,Large,Programme
UK Statistics Authority,Office for National Statistics,06-Jul-16,Specialist Contractors Non IT,Business Services and Development,Parity Resources Limited,80564887,"12,464.10",Information Management Services,Large,Programme
UK Statistics Authority,Office for National Statistics,06-Jul-16,Specialist Contractors Non IT,Census,Parity Resources Limited,80564887,142.26,Information Management Services,Large,Programme
UK Statistics Authority,Office for National Statistics,06-Jul-16,Specialist Contractors Non IT,Data Collection,Parity Resources Limited,80564887,"3,937.44",Information Management Services,Large,Programme
UK Statistics Authority,Office for National Statistics,06-Jul-16,Specialist Contractors Non IT,National Accounts and Economic Statistics,Parity Resources Limited,80564887,"2,718.00",Information Management Services,Large,Programme
UK Statistics Authority,Office for National Statistics,06-Jul-16,Specialist Contractors IT,Digital Services Technology and Methodology,Sopra Steria,80564892,"28,692.21",Information Management Services,Large,Programme
UK Statistics Authority,Office for National Statistics,06-Jul-16,Statistical Services/Surveys  ,Social and Analysis,TNS UK Ltd,80564896,"389,970.00",Statistical Services,Large,Programme
UK Statistics Authority,Office for National Statistics,06-Jul-16,Postage                       ,Data Collection,UK Mail,80564898,"42,151.26",Outgoing Postage,Large,Programme
UK Statistics Authority,Office for National Statistics,07-Jul-16,Travel & Subsistence,Corporate Support,Redfern Travel,80565386,"40,566.72",Travel and Accommodation Booking Service,SME,Programme
UK Statistics Authority,Office for National Statistics,08-Jul-16,Childcare Services,Corporate Support,Computershare Voucher Services,80565398,"29,792.37",Childcare Vouchers,Large,Programme
UK Statistics Authority,Office for National Statistics,08-Jul-16,Childcare Services,Finance,Computershare Voucher Services,80565398,"2,323.80",Childcare Vouchers,Large,Programme
UK Statistics Authority,Office for National Statistics,12-Jul-16,Postage                       ,Data Collection,Royal Mail Direct,100207,"42,000.00",Postage Stamps,Large,Programme
UK Statistics Authority,Office for National Statistics,12-Jul-16,Procurement Card,Corporate Support,Barclays Bank Plc,30000076,"49,827.12",Multiple Procurement Card Purchases,Large,Programme
UK Statistics Authority,Office for National Statistics,12-Jul-16,Stationery                    ,Corporate Support,Barclays Bank Plc,30000076,"8,322.78",Multiple Procurement Card Purchases,Large,Programme
UK Statistics Authority,Office for National Statistics,14-Jul-16,Specialist Contractors Non IT,Finance,Certus Solutions Consulting Services Ltd,80566467,"97,305.00",Information Management Services,SME,Programme
UK Statistics Authority,Office for National Statistics,14-Jul-16,IT Bureau Services            ,Digital Services Technology and Methodology,Crown Hosting Data Centres Limited,80566469,"59,977.38",Information Management Services,SME,Programme
UK Statistics Authority,Office for National Statistics,14-Jul-16,Travel & Subsistence,Corporate Support,Redfern Travel,80566480,"28,322.84",Travel and Accommodation Booking Service,SME,Programme
UK Statistics Authority,Office for National Statistics,14-Jul-16,Postage                       ,Data Collection,UK Mail,80566481,"26,001.11",Outgoing Postage,Large,Programme
UK Statistics Authority,Office for National Statistics,18-Jul-16,IT Purchases >2k,Digital Services Technology and Methodology,SCC,80566809,"30,579.65",Information Management Services,Large,Programme
UK Statistics Authority,Office for National Statistics,20-Jul-16,Electricity - Titchfield,Business Services and Development,EDF Energy,30000082,"25,035.47",Electricity charges Titchfield,Large,Programme
UK Statistics Authority,Office for National Statistics,20-Jul-16,Specialist Property Inspect   ,Business Services and Development,GVA Grimley,80566970,"30,858.00","Specialist Property Advice, Drummond Gate",Large,Programme
UK Statistics Authority,Office for National Statistics,21-Jul-16,Specialist Contractors IT,Business Services and Development,LA International,80567364,"26,094.64",Information Management Services,SME,Programme
UK Statistics Authority,Office for National Statistics,21-Jul-16,Specialist Contractors IT,Digital Services Technology and Methodology,LA International,80567364,"29,153.32",Information Management Services,SME,Programme
UK Statistics Authority,Office for National Statistics,21-Jul-16,Contractual Service Payments - Non IT,Data Collection,National Centre,80567365,"749,939.00",Statistical Services,Large,Programme
UK Statistics Authority,Office for National Statistics,21-Jul-16,Design & Print (External)     ,Data Collection,National Centre,80567365,"2,805.97",Statistical Services,Large,Programme
UK Statistics Authority,Office for National Statistics,21-Jul-16,Travel & Subsistence,Corporate Support,Redfern Travel,80567368,"27,414.06",Travel and Accommodation Booking Service,SME,Programme
UK Statistics Authority,Office for National Statistics,21-Jul-16,Contractual Service Payments - IT,Digital Services Technology and Methodology,Somerford Associates,80567369,"30,000.00",Information Management Services,Large,Programme
UK Statistics Authority,Office for National Statistics,21-Jul-16,IT Software Maintenance       ,Digital Services Technology and Methodology,Somerford Associates,80567369,"46,869.05",Information Management Services,Large,Programme
UK Statistics Authority,Office for National Statistics,21-Jul-16,Software Pool 4yr,Digital Services Technology and Methodology,Somerford Associates,80567369,"234,345.25",Perpetual License,Large,Programme
UK Statistics Authority,Office for National Statistics,22-Jul-16,Capital Major Works >25k      ,Business Services and Development,Paramount Office Interiors Ltd,80567475,"111,391.85",Titchfield Stage 4 Major works,SME,Programme
UK Statistics Authority,Office for National Statistics,26-Jul-16,Major Works Over 25k         ,Business Services and Development,Paramount Office Interiors Ltd,80567933,"165,834.96",Accomodation Planning,SME,Programme
UK Statistics Authority,Office for National Statistics,26-Jul-16,Major Works Over 25k         ,Census,Paramount Office Interiors Ltd,80567933,"17,078.40",Titchfield Stage 4 Major works,SME,Programme
UK Statistics Authority,Office for National Statistics,26-Jul-16,Statistical Services/Surveys  ,National Accounts and Economic Statistics,TNS UK Ltd,80567935,"189,031.20",Statistical Services,Large,Programme
UK Statistics Authority,Office for National Statistics,27-Jul-16,Specialist Contractors IT,Digital Services Technology and Methodology,Automation Consultants Ltd,80567938,"31,043.76",Information Management Services,SME,Programme
UK Statistics Authority,Office for National Statistics,28-Jul-16,Electricity - London,Business Services and Development,EDF Energy,30000087,"26,867.97",Electricity charges Drummond Gate ,Large,Programme
UK Statistics Authority,Office for National Statistics,28-Jul-16,Electricity - London,Business Services and Development,EDF Energy,30000088,"28,115.22",Electricity charges Drummond Gate ,Large,Programme
UK Statistics Authority,Office for National Statistics,28-Jul-16,Electricity - London,Business Services and Development,EDF Energy,30000089,"28,518.43",Electricity charges Drummond Gate ,Large,Programme
UK Statistics Authority,Office for National Statistics,29-Jul-16,FM Contract Payments,Corporate Support,Mitie Facilities Services Ltd,30000091,"356,935.61",Facilites Management Fixed Fee,Large,Programme
UK Statistics Authority,Office for National Statistics,29-Jul-16,Specialist Contractors Non IT,Finance,Certus Solutions Consulting Services Ltd,80568439,"66,825.00",Information Management Services,SME,Programme
UK Statistics Authority,Office for National Statistics,29-Jul-16,Contractual Service Payments - Non IT,Social and Analysis,London School of Hygiene & Tropical Medicine,80568454,"29,689.00",Statistical Services,Large,Programme
UK Statistics Authority,Office for National Statistics,29-Jul-16,IT Bureau Services            ,Digital Services Technology and Methodology,Microsoft Limited,80568455,"50,269.20",Information Management Services,Large,Programme
UK Statistics Authority,Office for National Statistics,29-Jul-16,Contractual Service Payments - Non IT,Data Collection,NISRA,80568456,"86,345.10",Statistical Services,Large,Programme
UK Statistics Authority,Office for National Statistics,29-Jul-16,Agency Staff,Business Services and Development,Parity Resources Limited,80568458,"3,093.09",Information Management Services,Large,Programme
UK Statistics Authority,Office for National Statistics,29-Jul-16,Agency Staff,Census,Parity Resources Limited,80568458,"1,238.50",Information Management Services,Large,Programme
UK Statistics Authority,Office for National Statistics,29-Jul-16,Specialist Contractors IT,Digital Services Technology and Methodology,Parity Resources Limited,80568458,"63,904.01",Information Management Services,Large,Programme
UK Statistics Authority,Office for National Statistics,29-Jul-16,Specialist Contractors Non IT,Business Services and Development,Parity Resources Limited,80568458,"19,111.62",Information Management Services,Large,Programme
UK Statistics Authority,Office for National Statistics,29-Jul-16,Specialist Contractors Non IT,Census,Parity Resources Limited,80568458,49.8,Information Management Services,Large,Programme
UK Statistics Authority,Office for National Statistics,29-Jul-16,Specialist Contractors Non IT,National Accounts and Economic Statistics,Parity Resources Limited,80568458,"9,784.80",Information Management Services,Large,Programme
UK Statistics Authority,Office for National Statistics,29-Jul-16,Travel & Subsistence,Corporate Support,Redfern Travel,80568460,"39,208.97",Travel and Accommodation Booking Service,SME,Programme
UK Statistics Authority,Office for National Statistics,29-Jul-16,Capital Major Works >25k      ,Business Services and Development,The Senator Group,80568464,"41,700.54",Newport Data Block Major works,Large,Programme
UK Statistics Authority,Office for National Statistics,29-Jul-16,IT Bureau Services            ,Digital Services Technology and Methodology,Vodafone Corporate Ltd,80568467,"36,684.92",Information Management Services,Large,Programme
